[Event "*** SCC Grand Prix: Titled Tuesday Blitz"]
[Site "Chess.com"]
[Date "2020.07.14"]
[Round "10"]
[White "frederiksvane"]
[Black "Skatchkov_V"]
[Result "0-1"]
[WhiteElo "2687"]
[BlackElo "2582"]
[TimeControl "180+1"]
[EndTime "11:59:53 PDT"]
[Termination "Skatchkov_V won by checkmate"]

1. e4 {[%clk 0:03:00.9]} 1... e5 {[%clk 0:02:58.8]} 2. Nf3 {[%clk 0:03:00.7]}
2... Nf6 {[%clk 0:02:59.4]} 3. Nxe5 {[%clk 0:02:59.7]} 3... d6 {[%clk 0:03:00]}
4. Nf3 {[%clk 0:03:00.3]} 4... Nxe4 {[%clk 0:03:00.6]} 5. c4 {[%clk 0:03:01]}
5... Be7 {[%clk 0:02:55]} 6. Nc3 {[%clk 0:03:00.6]} 6... Nxc3 {[%clk 0:02:54.9]}
7. dxc3 {[%clk 0:03:01.5]} 7... O-O {[%clk 0:02:52.3]} 8. Bd3 {[%clk 0:03:02.1]}
8... Nd7 {[%clk 0:02:52.5]} 9. O-O {[%clk 0:03:02.1]} 9... Nc5 {[%clk
0:02:50.4]} 10. Bc2 {[%clk 0:02:59.3]} 10... Bg4 {[%clk 0:02:50.8]} 11. Be3
{[%clk 0:02:53.3]} 11... Bf6 {[%clk 0:02:46.6]} 12. b4 {[%clk 0:02:26.6]} 12...
Ne6 {[%clk 0:02:12.1]} 13. h3 {[%clk 0:02:24.9]} 13... Bh5 {[%clk 0:02:07.9]}
14. Qd5 {[%clk 0:02:24.7]} 14... Bg6 {[%clk 0:02:03.8]} 15. Bxg6 {[%clk
0:02:21.9]} 15... hxg6 {[%clk 0:02:04.1]} 16. Nd4 {[%clk 0:02:17.8]} 16... Bxd4
{[%clk 0:01:59.6]} 17. Bxd4 {[%clk 0:02:15]} 17... c6 {[%clk 0:01:58]} 18. Qe4
{[%clk 0:02:13.7]} 18... Qg5 {[%clk 0:01:54.9]} 19. Be3 {[%clk 0:02:10.6]} 19...
Qf6 {[%clk 0:01:50]} 20. Qd3 {[%clk 0:02:07.4]} 20... a5 {[%clk 0:01:37.3]} 21.
Bb6 {[%clk 0:01:49.3]} 21... axb4 {[%clk 0:01:33.6]} 22. cxb4 {[%clk 0:01:50.2]}
22... d5 {[%clk 0:01:30.3]} 23. cxd5 {[%clk 0:01:42.5]} 23... Nf4 {[%clk
0:01:28]} 24. Qf3 {[%clk 0:01:42.6]} 24... Nxd5 {[%clk 0:01:25.9]} 25. Qxf6
{[%clk 0:01:41.9]} 25... gxf6 {[%clk 0:01:24.8]} 26. Bc5 {[%clk 0:01:35.3]}
26... Rfe8 {[%clk 0:01:22.1]} 27. a4 {[%clk 0:01:26.9]} 27... Kg7 {[%clk
0:01:21.8]} 28. a5 {[%clk 0:01:21.5]} 28... Re4 {[%clk 0:01:21.6]} 29. Rfb1
{[%clk 0:01:17.2]} 29... Rae8 {[%clk 0:01:13.3]} 30. a6 {[%clk 0:01:14.1]} 30...
bxa6 {[%clk 0:01:10.5]} 31. Rxa6 {[%clk 0:01:15]} 31... R8e6 {[%clk 0:01:04.4]}
32. g3 {[%clk 0:01:09.2]} 32... Rc4 {[%clk 0:00:59.6]} 33. Rb2 {[%clk 0:00:53]}
33... g5 {[%clk 0:00:55]} 34. Kg2 {[%clk 0:00:49.1]} 34... f5 {[%clk 0:00:54.4]}
35. Raa2 {[%clk 0:00:47.3]} 35... f4 {[%clk 0:00:51.4]} 36. Rc2 {[%clk
0:00:43.4]} 36... Rxb4 {[%clk 0:00:39.6]} 37. Bxb4 {[%clk 0:00:39]} 37... Nxb4
{[%clk 0:00:40.5]} 38. gxf4 {[%clk 0:00:38.8]} 38... gxf4 {[%clk 0:00:37.5]} 39.
Kf3 {[%clk 0:00:39.4]} 39... Kf6 {[%clk 0:00:30.9]} 40. Kxf4 {[%clk 0:00:35]}
40... c5 {[%clk 0:00:26.4]} 41. h4 {[%clk 0:00:25.4]} 41... c4 {[%clk
0:00:21.9]} 42. h5 {[%clk 0:00:16.9]} 42... c3 {[%clk 0:00:19.8]} 43. Kf3 {[%clk
0:00:11.7]} 43... Rc6 {[%clk 0:00:17.5]} 44. Ke3 {[%clk 0:00:06.8]} 44... Nxa2
{[%clk 0:00:15.4]} 45. Kd4 {[%clk 0:00:07.2]} 45... Kg5 {[%clk 0:00:11.6]} 46.
Kd3 {[%clk 0:00:05]} 46... Nb4+ {[%clk 0:00:10.5]} 47. Ke4 {[%clk 0:00:05.4]}
47... Nxc2 {[%clk 0:00:10.9]} 48. h6 {[%clk 0:00:06.3]} 48... Kxh6 {[%clk
0:00:11.1]} 49. Kd5 {[%clk 0:00:06.5]} 49... Nb4+ {[%clk 0:00:11.5]} 50. Kd4
{[%clk 0:00:06.6]} 50... c2 {[%clk 0:00:12.4]} 51. Ke3 {[%clk 0:00:07.5]} 51...
c1=Q+ {[%clk 0:00:12.8]} 52. Kf3 {[%clk 0:00:08.4]} 52... Rf6+ {[%clk
0:00:12.7]} 53. Kg2 {[%clk 0:00:09.3]} 53... Nd3 {[%clk 0:00:12.8]} 54. Kh3
{[%clk 0:00:07.2]} 54... Rg6 {[%clk 0:00:11.1]} 55. Kh2 {[%clk 0:00:06.5]} 55...
Qg1+ {[%clk 0:00:11.7]} 56. Kh3 {[%clk 0:00:07.4]} 56... Qh1# {[%clk 0:00:12.1]}
0-1

[Event "*** SCC Grand Prix: Titled Tuesday Blitz"]
[Site "Chess.com"]
[Date "2020.07.14"]
[Round "10"]
[White "pastouche06"]
[Black "Steven_Rojas"]
[Result "1-0"]
[WhiteElo "2532"]
[BlackElo "2413"]
[TimeControl "180+1"]
[EndTime "11:59:53 PDT"]
[Termination "pastouche06 won by checkmate"]

1. d4 {[%clk 0:03:00.9]} 1... d5 {[%clk 0:03:00]} 2. c4 {[%clk 0:02:58.6]} 2...
e6 {[%clk 0:03:00.2]} 3. Nc3 {[%clk 0:02:58.1]} 3... Nf6 {[%clk 0:03:00.4]} 4.
cxd5 {[%clk 0:02:56.5]} 4... Nxd5 {[%clk 0:03:00.1]} 5. e4 {[%clk 0:02:56]} 5...
Nxc3 {[%clk 0:03:00.3]} 6. bxc3 {[%clk 0:02:56.9]} 6... c5 {[%clk 0:03:01.2]} 7.
Rb1 {[%clk 0:02:56.1]} 7... Be7 {[%clk 0:02:58.3]} 8. Nf3 {[%clk 0:02:54.1]}
8... O-O {[%clk 0:02:55.8]} 9. Bd3 {[%clk 0:02:46.4]} 9... cxd4 {[%clk
0:02:40.5]} 10. cxd4 {[%clk 0:02:45.3]} 10... Nc6 {[%clk 0:02:33.8]} 11. Bb5
{[%clk 0:02:41.3]} 11... Bf6 {[%clk 0:01:51]} 12. e5 {[%clk 0:02:32.9]} 12...
Be7 {[%clk 0:01:47.7]} 13. O-O {[%clk 0:02:32.8]} 13... Nb4 {[%clk 0:01:41.3]}
14. Bd2 {[%clk 0:02:29.8]} 14... Nd5 {[%clk 0:01:38]} 15. Qe2 {[%clk 0:02:25.5]}
15... b6 {[%clk 0:01:27.2]} 16. Qe4 {[%clk 0:02:19.5]} 16... Bb7 {[%clk
0:01:24.2]} 17. h4 {[%clk 0:02:15.8]} 17... Rb8 {[%clk 0:01:04.8]} 18. Bd3
{[%clk 0:02:12.1]} 18... Nf6 {[%clk 0:01:00.2]} 19. Qf4 {[%clk 0:02:08]} 19...
Nh5 {[%clk 0:00:52.7]} 20. Qg4 {[%clk 0:02:08]} 20... g6 {[%clk 0:00:52.2]} 21.
Bh6 {[%clk 0:02:05.3]} 21... Re8 {[%clk 0:00:49.7]} 22. Bb5 {[%clk 0:02:02.2]}
22... Bxf3 {[%clk 0:00:28.5]} 23. Qxf3 {[%clk 0:01:57.4]} 23... Qxd4 {[%clk
0:00:25.9]} 24. Bxe8 {[%clk 0:01:54.2]} 24... Rxe8 {[%clk 0:00:26.8]} 25. g4
{[%clk 0:01:21.9]} 25... Ng7 {[%clk 0:00:23.1]} 26. Rfe1 {[%clk 0:01:11.1]}
26... Bxh4 {[%clk 0:00:22]} 27. Rbd1 {[%clk 0:01:09.2]} 27... Qc5 {[%clk
0:00:20]} 28. Rd7 {[%clk 0:00:55.3]} 28... Re7 {[%clk 0:00:15.2]} 29. Rd8+
{[%clk 0:00:36.9]} 29... Ne8 {[%clk 0:00:14.9]} 30. g5 {[%clk 0:00:29.2]} 30...
Qc7 {[%clk 0:00:10.2]} 31. Rxe8+ {[%clk 0:00:23.3]} 31... Rxe8 {[%clk
0:00:11.1]} 32. Qf6 {[%clk 0:00:22.6]} 32... Bxf2+ {[%clk 0:00:11.7]} 33. Kxf2
{[%clk 0:00:20.3]} 33... Qc2+ {[%clk 0:00:10.3]} 34. Re2 {[%clk 0:00:19.5]}
34... Qf5+ {[%clk 0:00:10.1]} 35. Kg3 {[%clk 0:00:17.2]} 35... Qxf6 {[%clk
0:00:05]} 36. gxf6 {[%clk 0:00:16.3]} 36... Rc8 {[%clk 0:00:01.6]} 37. Rd2
{[%clk 0:00:16.2]} 37... a5 {[%clk 0:00:02.5]} 38. Kf4 {[%clk 0:00:14.5]} 38...
g5+ {[%clk 0:00:02.9]} 39. Bxg5 {[%clk 0:00:11.9]} 39... h6 {[%clk 0:00:03.4]}
40. Bxh6 {[%clk 0:00:11.7]} 40... Rc4+ {[%clk 0:00:02.5]} 41. Kg5 {[%clk
0:00:09.7]} 41... Kh7 {[%clk 0:00:03.4]} 42. Bg7 {[%clk 0:00:09.4]} 42... Rh4
{[%clk 0:00:01.7]} 43. Kxh4 {[%clk 0:00:08.6]} 43... Kg6 {[%clk 0:00:01.5]} 44.
Kg4 {[%clk 0:00:09.1]} 44... b5 {[%clk 0:00:02.2]} 45. Rd6 {[%clk 0:00:08.9]}
45... b4 {[%clk 0:00:03.1]} 46. Ra6 {[%clk 0:00:08.2]} 46... b3 {[%clk 0:00:04]}
47. axb3 {[%clk 0:00:07.5]} 47... Kh7 {[%clk 0:00:03]} 48. Kh5 {[%clk
0:00:06.7]} 48... Kg8 {[%clk 0:00:02]} 49. Kh6 {[%clk 0:00:05.9]} 49... a4
{[%clk 0:00:02.1]} 50. Ra8# {[%clk 0:00:06.8]} 1-0

[Event "*** SCC Grand Prix: Titled Tuesday Blitz"]
[Site "Chess.com"]
[Date "2020.07.14"]
[Round "10"]
[White "eljanov"]
[Black "topotun"]
[Result "1/2-1/2"]
[WhiteElo "2847"]
[BlackElo "2714"]
[TimeControl "180+1"]
[EndTime "11:59:55 PDT"]
[Termination "Game drawn by agreement"]

1. e4 {[%clk 0:03:00.9]} 1... c5 {[%clk 0:02:57]} 2. Nf3 {[%clk 0:03:00.6]} 2...
e6 {[%clk 0:02:57.4]} 3. d4 {[%clk 0:03:00.9]} 3... cxd4 {[%clk 0:02:58.3]} 4.
Nxd4 {[%clk 0:03:01.5]} 4... Nc6 {[%clk 0:02:58.9]} 5. c4 {[%clk 0:02:58.5]}
5... Nf6 {[%clk 0:02:57.7]} 6. Nc3 {[%clk 0:02:58]} 6... Bb4 {[%clk 0:02:57.7]}
7. Nxc6 {[%clk 0:02:58.1]} 7... bxc6 {[%clk 0:02:57.9]} 8. Bd3 {[%clk
0:02:58.1]} 8... e5 {[%clk 0:02:58]} 9. O-O {[%clk 0:02:56.8]} 9... O-O {[%clk
0:02:58.1]} 10. Qe2 {[%clk 0:02:57.4]} 10... d6 {[%clk 0:02:50.6]} 11. Na4
{[%clk 0:02:53.6]} 11... Re8 {[%clk 0:02:41.5]} 12. a3 {[%clk 0:02:53.2]} 12...
Ba5 {[%clk 0:02:41.7]} 13. b4 {[%clk 0:02:53.8]} 13... Bc7 {[%clk 0:02:42.4]}
14. Bg5 {[%clk 0:02:51.9]} 14... h6 {[%clk 0:02:41.4]} 15. Bh4 {[%clk
0:02:52.2]} 15... g5 {[%clk 0:01:38.4]} 16. Bg3 {[%clk 0:02:51.3]} 16... d5
{[%clk 0:01:39.1]} 17. Nc5 {[%clk 0:02:41.5]} 17... a5 {[%clk 0:01:19]} 18. cxd5
{[%clk 0:02:20.3]} 18... cxd5 {[%clk 0:01:17.2]} 19. b5 {[%clk 0:02:05]} 19...
Bb6 {[%clk 0:01:05.1]} 20. Rac1 {[%clk 0:02:01.8]} 20... Qd6 {[%clk 0:00:52]}
21. Na4 {[%clk 0:01:58.2]} 21... Bd4 {[%clk 0:00:51.4]} 22. Rc6 {[%clk
0:01:57.5]} 22... Qe7 {[%clk 0:00:40.4]} 23. Nb6 {[%clk 0:01:50]} 23... Bg4
{[%clk 0:00:39]} 24. Nxd5 {[%clk 0:01:43.8]} 24... Bxe2 {[%clk 0:00:26.7]} 25.
Nxe7+ {[%clk 0:01:43.7]} 25... Rxe7 {[%clk 0:00:27.6]} 26. Bxe2 {[%clk
0:01:44.3]} 26... Nxe4 {[%clk 0:00:28.2]} 27. Rxh6 {[%clk 0:01:24.2]} 27... Rc8
{[%clk 0:00:16.3]} 28. Rc6 {[%clk 0:01:08.1]} 28... Rxc6 {[%clk 0:00:12.2]} 29.
bxc6 {[%clk 0:01:09]} 29... Rc7 {[%clk 0:00:12.1]} 30. Bb5 {[%clk 0:01:02.2]}
30... a4 {[%clk 0:00:03.9]} 31. Bxa4 {[%clk 0:00:57.6]} 31... Nc3 {[%clk
0:00:04.3]} 32. Bb3 {[%clk 0:00:56.9]} 32... Ne2+ {[%clk 0:00:03]} 33. Kh1
{[%clk 0:00:56.6]} 33... Rxc6 {[%clk 0:00:03]} 34. Bd5 {[%clk 0:00:52.4]} 34...
Rc3 {[%clk 0:00:03.7]} 35. a4 {[%clk 0:00:52]} 35... Kg7 {[%clk 0:00:03.9]} 36.
Bf3 {[%clk 0:00:30.4]} 36... Nxg3+ {[%clk 0:00:03.1]} 37. fxg3 {[%clk 0:00:31]}
37... Ra3 {[%clk 0:00:04]} 38. Bc6 {[%clk 0:00:18.4]} 38... f5 {[%clk
0:00:04.4]} 39. Bd7 {[%clk 0:00:14.2]} 39... f4 {[%clk 0:00:04.8]} 40. gxf4
{[%clk 0:00:14.5]} 40... exf4 {[%clk 0:00:05.7]} 41. h3 {[%clk 0:00:14.1]} 41...
Ra1 {[%clk 0:00:05.6]} 42. Rxa1 {[%clk 0:00:13.5]} 42... Bxa1 {[%clk 0:00:06.5]}
43. Kg1 {[%clk 0:00:14]} 43... Bc3 {[%clk 0:00:06.8]} 44. Kf2 {[%clk 0:00:14]}
44... Kf6 {[%clk 0:00:07.5]} 45. Kf3 {[%clk 0:00:14.3]} 45... Ke5 {[%clk
0:00:07.8]} 46. Kg4 {[%clk 0:00:13.9]} 46... Kf6 {[%clk 0:00:08.3]} 47. Bf5
{[%clk 0:00:09.9]} 47... Ba5 {[%clk 0:00:08.2]} 48. h4 {[%clk 0:00:10.2]} 48...
gxh4 {[%clk 0:00:08.3]} 49. Kxf4 {[%clk 0:00:11.1]} 49... Be1 {[%clk 0:00:07.3]}
50. Ke4 {[%clk 0:00:11]} 50... Ke7 {[%clk 0:00:07.4]} 51. Kd5 {[%clk 0:00:11.1]}
51... Kd8 {[%clk 0:00:07.5]} 52. Kc6 {[%clk 0:00:11.5]} 52... Bd2 {[%clk
0:00:07.7]} 53. Kb6 {[%clk 0:00:11.6]} 53... Be3+ {[%clk 0:00:08.2]} 54. Kb7
{[%clk 0:00:11]} 54... Bd2 {[%clk 0:00:08.3]} 55. Be6 {[%clk 0:00:10.7]} 55...
Be1 {[%clk 0:00:08.4]} 56. Kb8 {[%clk 0:00:10.3]} 56... Bd2 {[%clk 0:00:07.8]}
57. Kb7 {[%clk 0:00:09.9]} 57... Be1 {[%clk 0:00:08.4]} 58. Kc6 {[%clk
0:00:10.1]} 58... Bd2 {[%clk 0:00:07.8]} 59. Bh3 {[%clk 0:00:09.1]} 59... Be1
{[%clk 0:00:08.1]} 60. Kb6 {[%clk 0:00:06.7]} 60... Bf2+ {[%clk 0:00:08.3]} 61.
Ka6 {[%clk 0:00:05.5]} 61... Kc7 {[%clk 0:00:09.2]} 62. a5 {[%clk 0:00:05.2]}
62... Be1 {[%clk 0:00:09.5]} 63. Kb5 {[%clk 0:00:05.4]} 63... Kb8 {[%clk
0:00:10]} 64. a6 {[%clk 0:00:04.2]} 64... Ka7 {[%clk 0:00:10.9]} 65. Kc6 {[%clk
0:00:03.2]} 65... Bg3 {[%clk 0:00:11.8]} 66. Kd5 {[%clk 0:00:03]} 1/2-1/2

[Event "*** SCC Grand Prix: Titled Tuesday Blitz"]
[Site "Chess.com"]
[Date "2020.07.14"]
[Round "10"]
[White "snap_man"]
[Black "Rytenko_V"]
[Result "1/2-1/2"]
[WhiteElo "2314"]
[BlackElo "2439"]
[TimeControl "180+1"]
[EndTime "11:59:56 PDT"]
[Termination "Game drawn - insufficient material"]

1. Nf3 {[%clk 0:03:00.9]} 1... c5 {[%clk 0:02:58.6]} 2. g3 {[%clk 0:03:00.7]}
2... Nc6 {[%clk 0:02:59.2]} 3. b3 {[%clk 0:03:00.9]} 3... e5 {[%clk 0:02:56.9]}
4. Bb2 {[%clk 0:03:00.9]} 4... e4 {[%clk 0:02:57.2]} 5. Ne5 {[%clk 0:02:59.2]}
5... d5 {[%clk 0:02:56.6]} 6. Bg2 {[%clk 0:02:57.3]} 6... Nf6 {[%clk 0:02:54.8]}
7. O-O {[%clk 0:02:56.3]} 7... Bd6 {[%clk 0:02:53.3]} 8. Nxc6 {[%clk 0:02:56.2]}
8... bxc6 {[%clk 0:02:54.2]} 9. d3 {[%clk 0:02:46.1]} 9... Bf5 {[%clk
0:02:52.2]} 10. c4 {[%clk 0:02:44.7]} 10... d4 {[%clk 0:02:50.6]} 11. Nd2 {[%clk
0:02:36.8]} 11... exd3 {[%clk 0:02:49.6]} 12. Bxc6+ {[%clk 0:02:36.6]} 12... Kf8
{[%clk 0:02:49.1]} 13. Bxa8 {[%clk 0:02:34.2]} 13... Qxa8 {[%clk 0:02:48.3]} 14.
b4 {[%clk 0:02:12.6]} 14... Bh3 {[%clk 0:02:22.8]} 15. f3 {[%clk 0:02:12.6]}
15... Ng4 {[%clk 0:02:17.9]} 16. Ne4 {[%clk 0:01:55.9]} 16... Ne3 {[%clk
0:02:03.2]} 17. Qxd3 {[%clk 0:01:52.4]} 17... Bxf1 {[%clk 0:02:02.7]} 18. Nxd6
{[%clk 0:01:43.6]} 18... Qb8 {[%clk 0:01:49.2]} 19. bxc5 {[%clk 0:01:12.5]}
19... Qxb2 {[%clk 0:01:45.3]} 20. Rb1 {[%clk 0:01:12.6]} 20... Qxe2 {[%clk
0:01:12]} 21. Rb8+ {[%clk 0:01:11.3]} 21... Ke7 {[%clk 0:01:12.4]} 22. Qe4+
{[%clk 0:01:05.1]} 22... Kf6 {[%clk 0:01:06]} 23. Qf4+ {[%clk 0:01:04]} 23...
Kg6 {[%clk 0:01:03.4]} 24. Qxf7+ {[%clk 0:00:58.5]} 24... Kh6 {[%clk 0:01:03.8]}
25. Qf4+ {[%clk 0:00:56.6]} 25... Kg6 {[%clk 0:00:57.1]} 26. Qe4+ {[%clk
0:00:51.6]} 26... Kf6 {[%clk 0:00:45.3]} 27. Qxd4+ {[%clk 0:00:51.3]} 27... Kg6
{[%clk 0:00:43.8]} 28. Qe4+ {[%clk 0:00:42.8]} 28... Kf6 {[%clk 0:00:44]} 29.
Qf4+ {[%clk 0:00:31.5]} 29... Kg6 {[%clk 0:00:43.5]} 30. Qf7+ {[%clk 0:00:31.2]}
30... Kh6 {[%clk 0:00:42.7]} 31. Qe6+ {[%clk 0:00:23.7]} 31... Kh5 {[%clk
0:00:20.3]} 32. g4+ {[%clk 0:00:10.6]} 32... Kh4 {[%clk 0:00:19.3]} 33. Nf5+
{[%clk 0:00:10.4]} 33... Nxf5 {[%clk 0:00:18.7]} 34. Qxe2 {[%clk 0:00:10.5]}
34... Bxe2 {[%clk 0:00:18]} 35. Rxh8 {[%clk 0:00:11.2]} 35... Nd4 {[%clk
0:00:17.7]} 36. Kf2 {[%clk 0:00:10]} 36... Bxf3 {[%clk 0:00:14.7]} 37. Rxh7+
{[%clk 0:00:10.3]} 37... Kxg4 {[%clk 0:00:09.4]} 38. Rxg7+ {[%clk 0:00:10.9]}
38... Kf4 {[%clk 0:00:09.9]} 39. Rxa7 {[%clk 0:00:11.5]} 39... Bc6 {[%clk
0:00:09.3]} 40. h4 {[%clk 0:00:09.8]} 40... Nf5 {[%clk 0:00:09]} 41. Rf7 {[%clk
0:00:09.1]} 41... Ke5 {[%clk 0:00:08.7]} 42. Rxf5+ {[%clk 0:00:07.4]} 42... Kxf5
{[%clk 0:00:08.7]} 43. Ke3 {[%clk 0:00:07.9]} 43... Ke5 {[%clk 0:00:06.9]} 44.
h5 {[%clk 0:00:07.4]} 44... Be8 {[%clk 0:00:07]} 45. h6 {[%clk 0:00:06.8]} 45...
Bg6 {[%clk 0:00:07.2]} 46. Kf3 {[%clk 0:00:03.8]} 46... Kd4 {[%clk 0:00:07.1]}
47. c6 {[%clk 0:00:03.5]} 47... Be4+ {[%clk 0:00:07.5]} 48. Kg4 {[%clk
0:00:03.8]} 48... Bxc6 {[%clk 0:00:07.9]} 49. h7 {[%clk 0:00:04.1]} 49... Bd7+
{[%clk 0:00:08.8]} 50. Kg5 {[%clk 0:00:03.5]} 50... Kxc4 {[%clk 0:00:09.7]} 51.
h8=Q {[%clk 0:00:03.9]} 51... Bb5 {[%clk 0:00:10.6]} 52. Qc8+ {[%clk 0:00:03.1]}
52... Kb4 {[%clk 0:00:11.5]} 53. Kf4 {[%clk 0:00:03.5]} 53... Bc4 {[%clk
0:00:12.4]} 54. Ke5 {[%clk 0:00:04.4]} 54... Bxa2 {[%clk 0:00:12.7]} 55. Qc7
{[%clk 0:00:04.8]} 55... Kb3 {[%clk 0:00:12.8]} 56. Kf6 {[%clk 0:00:05.7]} 56...
Kb4 {[%clk 0:00:13.7]} 57. Kg7 {[%clk 0:00:06.6]} 57... Bc4 {[%clk 0:00:14.6]}
58. Kh6 {[%clk 0:00:07.5]} 58... Bb5 {[%clk 0:00:15.5]} 59. Kg5 {[%clk
0:00:08.4]} 59... Bc4 {[%clk 0:00:16.4]} 60. Kf4 {[%clk 0:00:09.3]} 60... Bb5
{[%clk 0:00:17.3]} 61. Ke3 {[%clk 0:00:10.2]} 61... Bc4 {[%clk 0:00:18.2]} 62.
Kd4 {[%clk 0:00:11.1]} 62... Bb5 {[%clk 0:00:19]} 63. Qc4+ {[%clk 0:00:12]}
63... Bxc4 {[%clk 0:00:18.4]} 1/2-1/2

[Event "*** SCC Grand Prix: Titled Tuesday Blitz"]
[Site "Chess.com"]
[Date "2020.07.14"]
[Round "10"]
[White "Matols"]
[Black "JSMastropiero"]
[Result "0-1"]
[WhiteElo "2199"]
[BlackElo "2397"]
[TimeControl "180+1"]
[EndTime "12:00:01 PDT"]
[Termination "JSMastropiero won on time"]

1. d4 {[%clk 0:03:00.9]} 1... Nf6 {[%clk 0:02:58.6]} 2. c4 {[%clk 0:03:01]} 2...
c5 {[%clk 0:02:57.3]} 3. d5 {[%clk 0:03:00.7]} 3... b5 {[%clk 0:02:56.6]} 4.
cxb5 {[%clk 0:03:00.7]} 4... a6 {[%clk 0:02:56]} 5. bxa6 {[%clk 0:03:00.9]} 5...
g6 {[%clk 0:02:55.1]} 6. Nc3 {[%clk 0:03:00.3]} 6... Bxa6 {[%clk 0:02:54.3]} 7.
Nf3 {[%clk 0:03:00.5]} 7... Bg7 {[%clk 0:02:52.4]} 8. g3 {[%clk 0:03:00.8]} 8...
O-O {[%clk 0:02:50.5]} 9. Bg2 {[%clk 0:03:01.1]} 9... d6 {[%clk 0:02:50.8]} 10.
O-O {[%clk 0:03:01.1]} 10... Nbd7 {[%clk 0:02:44.6]} 11. Rb1 {[%clk 0:03:01.5]}
11... Nb6 {[%clk 0:02:44]} 12. b3 {[%clk 0:02:49.6]} 12... Bc8 {[%clk
0:02:43.7]} 13. Bb2 {[%clk 0:02:25.5]} 13... Bf5 {[%clk 0:02:41.4]} 14. Rc1
{[%clk 0:02:19.6]} 14... Ne4 {[%clk 0:02:38.2]} 15. Nh4 {[%clk 0:02:13.4]} 15...
Nxc3 {[%clk 0:02:34.5]} 16. Bxc3 {[%clk 0:02:11.8]} 16... Bxc3 {[%clk
0:02:28.8]} 17. Rxc3 {[%clk 0:02:03.7]} 17... Qd7 {[%clk 0:02:16.2]} 18. e4
{[%clk 0:01:59.7]} 18... Bg4 {[%clk 0:02:07.6]} 19. f3 {[%clk 0:01:55.8]} 19...
Bh3 {[%clk 0:02:08]} 20. a4 {[%clk 0:01:53.8]} 20... Bxg2 {[%clk 0:02:03.2]} 21.
Nxg2 {[%clk 0:01:51.1]} 21... Rfb8 {[%clk 0:02:01.9]} 22. Ne3 {[%clk 0:01:49.4]}
22... Qa7 {[%clk 0:01:40.8]} 23. Kg2 {[%clk 0:01:45.6]} 23... Nd7 {[%clk
0:01:24.5]} 24. Nc4 {[%clk 0:01:27]} 24... Rb4 {[%clk 0:01:23.9]} 25. Qc2 {[%clk
0:01:23.1]} 25... Nb6 {[%clk 0:01:22.1]} 26. Nd2 {[%clk 0:01:15.9]} 26... Rb8
{[%clk 0:01:20]} 27. Ra1 {[%clk 0:01:11.2]} 27... Nd7 {[%clk 0:01:11.7]} 28. Rc4
{[%clk 0:00:46.2]} 28... Ne5 {[%clk 0:01:05]} 29. Rxb4 {[%clk 0:00:44.3]} 29...
Rxb4 {[%clk 0:01:05.9]} 30. a5 {[%clk 0:00:41]} 30... Qa6 {[%clk 0:01:04.1]} 31.
Nb1 {[%clk 0:00:26.5]} 31... c4 {[%clk 0:00:53.4]} 32. bxc4 {[%clk 0:00:24.9]}
32... Nxc4 {[%clk 0:00:52.8]} 33. Qd3 {[%clk 0:00:18.8]} 33... Rb2+ {[%clk
0:00:47.9]} 34. Kh3 {[%clk 0:00:18.4]} 34... Qc8+ {[%clk 0:00:43.7]} 35. g4
{[%clk 0:00:15.2]} 35... Ne5 {[%clk 0:00:42.8]} 36. Qc3 {[%clk 0:00:11.8]} 36...
Qb8 {[%clk 0:00:24.7]} 37. a6 {[%clk 0:00:10.7]} 37... Nxf3 {[%clk 0:00:19.1]}
38. Qxf3 {[%clk 0:00:07.3]} 38... Rb3 {[%clk 0:00:18.8]} 39. Nc3 {[%clk
0:00:05.5]} 39... h5 {[%clk 0:00:11.6]} 40. a7 {[%clk 0:00:05]} 40... hxg4+
{[%clk 0:00:11.4]} 41. Kxg4 {[%clk 0:00:05.2]} 41... Qc8+ {[%clk 0:00:11.1]} 42.
Kh4 {[%clk 0:00:03.5]} 42... Rxc3 {[%clk 0:00:09.3]} 43. a8=Q {[%clk 0:00:03.8]}
43... Rxf3 {[%clk 0:00:07]} 44. Qxc8+ {[%clk 0:00:02.5]} 44... Kg7 {[%clk
0:00:07.9]} 45. Qc7 {[%clk 0:00:02.2]} 45... Rf4+ {[%clk 0:00:07.1]} 46. Kg3
{[%clk 0:00:02.3]} 46... Rxe4 {[%clk 0:00:08]} 47. Qd7 {[%clk 0:00:02.2]} 47...
f5 {[%clk 0:00:07]} 48. Ra8 {[%clk 0:00:02.6]} 48... Kf6 {[%clk 0:00:07.4]} 49.
Qe8 {[%clk 0:00:02.5]} 49... Kg5 {[%clk 0:00:07.1]} 50. Qf8 {[%clk 0:00:02.5]}
50... f4+ {[%clk 0:00:07.3]} 51. Kf2 {[%clk 0:00:01.8]} 51... Re5 {[%clk
0:00:06]} 52. Qf7 {[%clk 0:00:02.3]} 52... Kg4 {[%clk 0:00:04.3]} 53. Rg8 {[%clk
0:00:02.8]} 53... g5 {[%clk 0:00:04.3]} 54. Qg6 {[%clk 0:00:02]} 54... Rxd5
{[%clk 0:00:03.4]} 0-1